bitfinex/quotes_ETHUSD_20240721
["timestamp","ask_amount","ask_price","bid_price","bid_amount"]
[1721543509446,1.927,3496.3,3494.9,2.2752]
[1721543509677,2.86059,3495.8,3495.0,2.86117]
[1721543509858,2.86066,3495.7,3494.9,2.2752]
[1721543510260,2.86066,3495.7,3494.9,5.13649]
[1721543510455,2.86066,3495.7,3495.0,4.416016]
[1721543511893,2.86049,3495.9,3495.0,1.554796]
[1721543512109,2.86017,3496.3,3495.1,2.86114]
[1721543512406,2.85997,3496.6,3495.7,5.16484]
[1721543512607,5.72009,3496.5,3495.8,0.516484]
[1721543512804,2.86008,3496.4,3495.8,0.516484]
[1721543512967,2.86016,3496.3,3495.8,0.516484]
[1721543513313,2.86008,3496.4,3495.8,0.516484]
[1721543513457,2.86008,3496.4,3495.9,0.2820684]
[1721543514891,2.85995,3496.6,3495.9,0.2820684]
[1721543515096,2.86002,3496.5,3495.9,0.2820684]
[1721543515297,3.45679707,3496.9,3495.9,0.2820684]
[1721543515597,2.86001,3496.5,3495.9,0.2820684]
[1721543516602,2.86001,3496.5,3494.4,0.59411993]
[1721543516603,1.7,3495.4,3492.8,2.24022386]
[1721543516804,1.8379,3495.7,3492.4,3.3118167]
[1721543516805,2.3237,3494.0,3492.4,3.3118167]
[1721543517119,2.8627,3493.3,3492.5,0.05378123]
[1721543517323,2.86304,3492.8,3491.2,2.3042]
[1721543517490,2.86304,3492.8,3491.5,2.86409]
[1721543517491,2.86313,3492.7,3491.5,2.86409]
[1721543517698,2.86304,3492.8,3491.5,2.86409]
[1721543517885,2.86331,3492.5,3491.3,2.86425]
[1721543518085,2.86346,3492.3,3491.4,0.516845]
[1721543518285,2.86331,3492.5,3491.4,0.516845]
[1721543518286,2.86337,3492.4,3491.4,0.516845]
[1721543518709,2.86337,3492.4,3491.4,3.381015]
[1721543519234,5.19265,3493.1,3491.6,2.86399]
[1721543519235,2.8632,3492.6,3491.6,2.86399]
[1721543519398,2.8632,3492.6,3491.7,3.9245005]
[1721543519718,2.86291,3493.0,3492.0,2.86368]
[1721543519908,2.86291,3493.0,3492.1,2.3279]
[1721543520298,2.86309,3492.8,3490.8,2.3279]
[1721543520486,2.86309,3492.8,3491.8,5.19174]
[1721543520689,2.86286,3493.1,3491.9,3.382934]
[1721543520690,2.86302,3492.9,3491.9,3.382934]
[1721543520889,2.86286,3493.1,3492.0,2.86367]
[1721543521223,2.86255,3493.4,3492.3,2.86343]
[1721543521425,2.86263,3493.3,3492.0,2.86367]
[1721543521730,2.3298,3493.6,3492.4,2.86335]
[1721543521731,2.86238,3493.6,3492.4,2.86335]
[1721543521928,2.86227,3493.8,3492.5,0.286335]
[1721543522105,2.86227,3493.8,3492.5,3.286335]
[1721543522303,0.23237,3493.9,3492.5,3.286335]
[1721543522611,3.31049399,3494.6,3492.9,2.86295]
[1721543522612,2.86222,3493.8,3492.9,2.86295]
[1721543522939,2.86188,3494.3,3493.3,2.86259]
[1721543523225,2.86213,3493.9,3493.0,10.45]
[1721543523923,2.86237,3493.7,3493.0,7.45]
[1721543524098,2.86253,3493.5,3493.0,7.45]
[1721543524295,2.86253,3493.5,3492.5,10.599525]
[1721543524633,2.86253,3493.5,3492.6,4.8790785]
[1721543524835,2.86253,3493.5,3491.9,0.519174]
[1721543524836,2.86272,3493.2,3491.9,2.847074]
[1721543525320,2.3298,3493.6,3491.9,2.847074]
[1721543525521,2.8631,3492.8,3491.9,2.3279]
[1721543525695,2.8631,3492.8,3491.9,5.19165]
[1721543526097,2.86312,3492.7,3491.9,5.19165]
[1721543526422,2.86312,3492.7,3491.9,2.3279]
[1721543526595,2.8632,3492.6,3491.9,2.3279]
[1721543527225,2.86306,3492.8,3491.9,3.892074]
[1721543528600,2.86298,3492.9,3491.9,3.892074]
[1721543529016,2.86298,3492.9,3492.0,2.86362]
[1721543529706,5.3298,3493.6,3491.9,3.892074]
[1721543529707,2.86287,3493.0,3492.2,2.86351]
[1721543530099,2.86295,3492.9,3492.0,2.86366]
[1721543530416,2.86295,3492.9,3491.9,2.3279]
[1721543530417,2.86303,3492.8,3491.9,2.3279]
[1721543530618,2.86295,3492.9,3491.9,2.3279]
[1721543531198,2.86295,3492.9,3491.7,7.45]
[1721543531413,2.86336,3492.4,3491.7,7.45]
[1721543531629,2.86336,3492.4,3491.4,5.30047]
[1721543531933,2.86336,3492.4,3491.5,3.0]
[1721543532131,2.86349,3492.3,3491.5,3.0]
[1721543532336,2.86355,3492.2,3491.5,3.0]
[1721543532645,2.86358,3492.2,3491.5,3.0]
[1721543532804,2.86358,3492.2,3491.4,5.4363]
[1721543533001,2.86358,3492.2,3491.4,8.35366562]
[1721543534665,2.3503,3492.8,3491.3,7.45]
[1721543534666,2.8637,3492.0,3491.3,7.45]
[1721543535461,2.86418,3491.4,3491.3,7.45]
[1721543535625,2.864,3491.7,3490.7,7.45]
[1721543535826,2.86404,3491.6,3490.8,3.896131]
[1721543536137,2.86404,3491.6,3490.8,1.031481]
[1721543536339,2.86404,3491.6,3490.7,7.45]
[1721543536340,0.521393,3492.0,3490.7,7.45]
[1721543536650,0.521393,3492.0,3488.4,2.573]
[1721543536651,2.3503,3490.3,3489.5,0.005]
[1721543536857,5.21544,3490.3,3489.5,0.005]
[1721543537013,2.3503,3490.3,3489.5,0.005]
[1721543537217,2.86508,3490.3,3489.5,0.005]
[1721543537476,0.286508,3490.2,3489.5,0.005]
[1721543537819,2.86489,3490.6,3489.5,0.005]
[1721543538052,3.0,3490.5,3489.5,0.005]
[1721543538234,2.8651,3490.3,3489.5,0.005]
[1721543539159,2.86525,3490.1,3489.5,0.005]
[1721543539465,0.286525,3490.0,3489.5,0.005]
[1721543539670,2.86509,3490.3,3489.5,2.87073]
[1721543539973,2.86485,3490.6,3489.5,2.87073]
[1721543540270,2.3503,3490.8,3489.5,2.87073]
[1721543540271,5.21497,3490.8,3489.9,2.8654]
[1721543540477,2.86445,3491.1,3489.9,2.8654]
[1721543540636,2.86445,3491.1,3490.2,2.86516]
[1721543540637,0.5573,3491.0,3490.2,2.86516]
[1721543540827,3.42183,3491.0,3490.2,2.86516]
[1721543541233,2.86398,3491.7,3489.5,0.005]
[1721543541505,2.86398,3491.7,3490.1,2.86524]
[1721543541785,5.21407,3491.9,3490.1,2.86524]
[1721543541786,2.86401,3491.6,3490.8,2.86466]
[1721543541924,2.8641,3491.5,3490.5,10.31485]
[1721543542125,2.86385,3491.8,3490.5,10.31485]
[1721543542324,0.5735543,3491.7,3490.5,10.31485]
[1721543543057,0.5735543,3491.7,3490.9,2.86455]
[1721543543457,3.4375143,3491.7,3490.9,2.86455]
[1721543543839,2.86402,3491.6,3490.9,2.86455]
[1721543544360,2.86402,3491.6,3490.7,2.86472]
[1721543544763,3.29118685,3491.6,3490.7,2.86472]
[1721543545462,2.8641,3491.5,3490.7,2.86472]
[1721543545629,2.86435,3491.2,3490.5,7.45]
[1721543545829,2.86422,3491.4,3490.5,7.45]
[1721543546056,2.86434,3491.2,3490.5,7.45]
[1721543546434,2.86422,3491.4,3490.5,10.31491]
[1721543546641,2.86401,3491.6,3490.7,2.86475]
[1721543546962,2.86412,3491.5,3490.7,2.86475]
[1721543547163,2.8642,3491.4,3490.5,10.31491]
[1721543547387,2.86426,3491.3,3490.5,10.31491]
[1721543547533,3.436876,3491.6,3490.5,7.45]
[1721543547983,0.572786,3491.6,3490.2,3.0]
[1721543548293,2.86487,3490.6,3489.7,2.86556]
[1721543548578,0.2923086,3491.5,3489.6,2.86565]
[1721543548579,2.8647,3490.8,3489.6,2.86565]
[1721543548779,2.8647,3490.8,3489.9,2.86532]
[1721543548942,2.8647,3490.8,3490.0,2.86525]
[1721543549138,2.86432,3491.3,3489.5,0.005]
[1721543549345,0.60208586,3491.2,3490.3,2.86501]
[1721543549963,3.46644586,3491.2,3490.4,2.86498]
[1721543550165,2.4403,3491.1,3489.5,0.005]
[1721543550364,2.86496,3490.5,3489.5,2.87073]
[1721543550659,2.9903,3491.1,3489.5,2.87073]
[1721543550660,2.86506,3490.4,3489.5,0.005]
[1721543550892,0.57299,3490.3,3489.5,2.87073]
[1721543551027,0.57299,3490.3,3489.6,2.86563]
[1721543551227,0.57299,3490.3,3489.7,2.86555]
[1721543551463,2.86476,3490.7,3489.8,2.86543]
[1721543551834,2.86462,3490.9,3490.1,2.86523]
[1721543552369,2.86467,3490.8,3490.0,2.8653]
[1721543552666,2.86451,3491.0,3490.1,2.86523]
[1721543552869,0.572885,3490.9,3490.1,2.86523]
[1721543553033,3.437475,3490.9,3490.1,2.86523]
[1721543553230,2.86446,3491.1,3490.3,2.86507]
[1721543554258,5.0133,3491.7,3489.9,2.3498]
[1721543554259,2.86465,3490.9,3490.1,2.86521]
[1721543554457,2.86467,3490.8,3489.9,2.3498]
[1721543554677,2.86458,3491.0,3490.2,2.86514]
[1721543556684,2.86419,3491.4,3489.9,2.3498]
[1721543556863,3.150679,3491.3,3490.4,2.86493]
[1721543557183,0.286419,3491.3,3490.3,2.86506]
[1721543557506,0.286419,3491.3,3490.5,2.86491]
[1721543557662,3.150679,3491.3,3490.6,2.86482]
[1721543557866,0.286419,3491.3,3490.6,2.86482]
[1721543558482,2.86401,3491.6,3490.7,2.86474]
[1721543558950,2.8641,3491.5,3490.7,2.86474]
[1721543559993,2.86386,3491.8,3490.9,2.86458]
[1721543560153,2.86404,3491.6,3490.9,2.86458]
[1721543560352,2.86404,3491.6,3490.7,2.86474]
[1721543560547,3.43683,3491.6,3490.7,2.86474]
[1721543560801,0.57279,3491.6,3490.8,2.86463]
[1721543561287,3.43683,3491.6,3490.8,2.86463]
[1721543561653,3.43683,3491.6,3490.9,2.86457]
[1721543561998,0.57279,3491.6,3491.0,2.8645]
[1721543562147,5.0133,3492.2,3491.0,2.8645]
[1721543562148,2.86396,3491.7,3491.0,2.8645]
[1721543562652,2.86381,3491.9,3491.1,2.86441]
[1721543562850,2.86381,3491.9,3490.9,2.86458]
[1721543563485,2.86381,3491.9,3490.8,2.3498]
[1721543563486,2.86396,3491.7,3491.0,2.8645]
[1721543563786,2.86361,3492.1,3491.1,2.86441]
[1721543563973,3.587101,3492.1,3491.1,2.86441]
[1721543564173,2.86361,3492.1,3491.4,2.86415]
[1721543564555,2.86344,3492.3,3491.4,2.86415]
[1721543565572,2.86344,3492.3,3491.5,2.86409]
[1721543565953,2.4403,3492.7,3490.9,10.45]
[1721543565954,2.86314,3492.7,3490.9,10.45]
[1721543566150,2.86314,3492.7,3491.8,2.8638]
[1721543566381,2.86314,3492.7,3491.9,2.86374]
[1721543567086,2.86314,3492.7,3492.0,2.86367]
[1721543567397,2.86295,3492.9,3492.0,2.86367]
[1721543567688,2.86299,3492.9,3492.0,2.86367]
[1721543567855,0.572586,3492.8,3492.0,2.86367]
[1721543568199,0.572586,3492.8,3492.1,2.8636]
[1721543568408,3.435616,3492.8,3492.0,2.86367]
[1721543569889,3.435616,3492.8,3492.1,2.86359]
[1721543569890,0.572586,3492.8,3492.1,2.86359]
[1721543570255,2.86305,3492.8,3492.1,2.86359]
[1721543572078,2.86305,3492.8,3491.9,2.86375]
[1721543572576,2.86305,3492.8,3492.0,2.86367]
[1721543575349,2.86295,3492.9,3492.1,2.86355]
[1721543575561,2.86295,3492.9,3492.2,2.86352]
[1721543575699,3.872647,3492.9,3492.2,2.86352]
[1721543576534,2.86283,3493.1,3492.3,2.86343]
[1721543576746,2.86283,3493.1,3492.4,2.86335]
[1721543578241,2.86287,3493.0,3492.2,2.86348]
[1721543579074,2.86276,3493.2,3492.2,2.86352]
[1721543579232,2.86276,3493.2,3492.4,2.8633]
[1721543579425,3.20874771,3493.2,3492.4,2.8633]
[1721543580143,2.86276,3493.2,3492.4,2.8633]
[1721543580337,2.86276,3493.2,3492.5,2.86326]
[1721543580562,2.86258,3493.4,3492.6,2.86318]
[1721543581057,2.86246,3493.5,3492.8,2.86303]
[1721543581385,3.397296,3493.5,3492.8,2.86303]
[1721543581678,2.86218,3493.9,3493.1,2.86276]
[1721543582568,2.4859,3494.0,3493.1,2.86276]
[1721543582569,2.86222,3493.8,3493.1,2.86276]
[1721543583073,2.4859,3494.0,3493.0,2.86286]
[1721543583074,2.86209,3494.0,3493.0,2.86286]
[1721543583379,3.49419271,3494.0,3493.0,2.86286]
[1721543583587,3.49419271,3494.0,3493.3,2.8626]
[1721543583869,2.86182,3494.3,3493.4,2.86252]
[1721543583870,2.86181,3494.3,3493.4,2.86252]
[1721543584570,2.4859,3494.4,3493.3,5.22011]
[1721543584931,2.52811707,3494.8,3493.3,2.3575]
[1721543585270,2.86175,3494.4,3493.5,2.8624]
[1721543585780,2.8618,3494.3,3493.6,2.86235]
[1721543587074,2.86168,3494.5,3493.7,2.86228]
[1721543587233,2.86168,3494.5,3493.8,2.8622]
[1721543587870,5.34713,3495.0,3493.9,2.86212]
[1721543588075,5.34713,3495.0,3493.5,2.86244]
[1721543588076,0.727813,3494.9,3493.5,2.86244]
[1721543588276,2.86171,3494.5,3493.7,2.86229]
[1721543589604,2.86173,3494.4,3493.4,2.86249]
[1721543589813,2.86173,3494.4,3493.4,3.0]
[1721543590015,2.86173,3494.4,3493.6,2.86235]
[1721543590306,2.86181,3494.3,3493.6,2.86235]
[1721543591689,2.86181,3494.3,3493.5,0.559325]
[1721543592689,2.86173,3494.4,3493.6,2.86234]
[1721543593090,2.86156,3494.6,3493.8,2.86221]
[1721543593272,2.86151,3494.7,3493.8,3.4906085]
[1721543593472,2.86159,3494.6,3493.8,3.4906085]
[1721543593677,2.86159,3494.6,3493.8,3.3906085]
[1721543594027,2.86164,3494.5,3493.8,3.3906085]
[1721543594181,2.86151,3494.7,3493.9,3.48740785]
[1721543595315,2.86157,3494.6,3493.9,3.48740785]
[1721543595482,2.86157,3494.6,3493.9,0.62529785]
[1721543596008,0.727813,3494.9,3493.9,0.62529785]
[1721543596009,2.86164,3494.5,3493.9,0.62529785]
[1721543596236,2.86174,3494.4,3493.9,0.62529785]
[1721543597691,0.727813,3494.9,3493.5,8.009325]
[1721543598059,2.86191,3494.2,3493.5,8.009325]
[1721543598838,2.86201,3494.1,3493.5,8.009325]
[1721543599020,2.86201,3494.1,3493.5,0.559325]
[1721543600548,2.86191,3494.2,3493.5,0.559325]
[1721543600837,2.86213,3493.9,3493.5,0.559325]
[1721543601037,2.86213,3493.9,3493.6,0.5916825]
[1721543601597,2.86213,3493.9,3493.3,2.3575]
[1721543601598,4.79244,3494.8,3493.3,2.3575]
[1721543601799,2.86244,3493.6,3493.1,7.45]
[1721543602064,2.86225,3493.8,3492.9,2.3118]
[1721543602206,2.86225,3493.8,3493.0,2.86286]
[1721543602837,2.86231,3493.7,3493.0,2.86286]
[1721543603034,2.86231,3493.7,3493.1,0.517466]
[1721543603347,2.86231,3493.7,3493.1,3.517466]
[1721543604049,2.86217,3493.9,3493.1,6.380236]
[1721543604545,2.86226,3493.8,3493.1,6.380236]
[1721543604744,2.86217,3493.9,3493.1,3.517466]
[1721543604969,2.86232,3493.7,3493.2,0.8692206]
[1721543605258,2.86198,3494.1,3493.2,0.8692206]
[1721543605416,2.86198,3494.1,3493.3,2.86261]
[1721543605612,2.86205,3494.0,3493.4,2.3118]
[1721543609386,1.931,3494.4,3493.4,2.3118]
[1721543609387,2.86199,3494.1,3493.4,5.17433]
[1721543609534,2.86199,3494.1,3493.4,5.52526912]
[1721543613375,2.86205,3494.0,3493.4,2.66273912]
[1721543613780,1.931,3494.4,3493.4,2.66273912]
[1721543614146,2.86181,3494.3,3493.6,2.8623]
[1721543614348,2.86169,3494.5,3493.7,2.86226]
[1721543614962,2.86169,3494.5,3493.7,3.71098991]
[1721543615176,2.86169,3494.5,3493.8,2.2638]
[1721543617393,2.86173,3494.4,3493.8,2.2638]
[1721543621507,0.59711707,3494.5,3493.8,2.2638]
[1721543621689,0.59711707,3494.5,3493.8,6.46849299]
[1721543622279,0.59711707,3494.4,3493.8,6.46849299]
[1721543623223,0.59711707,3494.5,3493.9,2.86211]
[1721543623393,0.59711707,3494.4,3493.9,2.86211]
[1721543623725,0.89415496,3494.6,3494.0,0.73171229]
[1721543623726,0.59711707,3494.5,3494.0,0.73171229]
[1721543624386,0.59711707,3494.4,3494.0,0.73171229]
[1721543625626,0.59711707,3494.3,3494.0,0.73171229]
[1721543626719,0.89415496,3494.5,3494.0,0.73171229]
[1721543626720,0.59711707,3494.4,3494.0,0.73171229]
[1721543626907,0.59711707,3494.4,3494.1,0.72001053]
[1721543627305,0.59711707,3494.4,3493.9,2.86211]
[1721543627306,0.59711707,3494.3,3493.9,2.86211]
[1721543627488,0.59711707,3494.2,3493.9,2.86211]
[1721543628417,0.59711707,3494.3,3493.9,2.86211]
[1721543631283,0.59711707,3494.3,3493.8,3.60628299]
[1721543631488,0.59711707,3494.2,3493.8,3.60628299]
[1721543631725,0.59711707,3494.2,3493.9,0.6468563]
[1721543632427,0.59711707,3494.2,3493.5,13.31244]
[1721543632428,0.59711707,3494.1,3493.5,15.76494]
[1721543632625,0.89415496,3494.2,3493.6,3.55]
[1721543632626,0.59711707,3494.0,3493.6,3.55]
[1721543633140,0.59711707,3494.0,3493.5,9.9025]
[1721543633425,2.86237,3493.6,3493.5,7.45]
[1721543633608,2.86237,3493.6,3493.4,0.1]
[1721543633609,2.86245,3493.5,3493.4,0.1]
[1721543634291,3.75660496,3493.5,3493.4,0.1]
[1721543634491,3.75600142,3493.5,3493.4,0.1]
[1721543637602,2.86245,3493.5,3493.4,0.1]
[1721543637966,5.7249,3493.5,3493.4,0.1]
[1721543638260,6.61845142,3493.5,3493.4,0.1]
[1721543639327,5.7249,3493.5,3493.4,0.1]
[1721543640005,6.68399358,3493.5,3493.4,0.1]
[1721543640705,14.55281877,3493.5,3493.4,0.1]
[1721543640910,13.51762351,3493.5,3493.4,0.1]
[1721543641106,13.51760108,3493.5,3493.4,0.1]
[1721543642420,13.06450892,3493.5,3493.4,0.1]
[1721543643128,14.55134879,3493.5,3493.4,0.1]
[1721543644043,15.67634879,3493.5,3493.4,0.1]
[1721543644655,14.18950892,3493.5,3493.4,0.1]
[1721543645961,15.67513521,3493.5,3493.4,0.1]
[1721543646785,14.18950892,3493.5,3493.4,0.1]
[1721543647069,14.27427708,3493.5,3493.4,0.1]
[1721543647270,13.08604358,3493.5,3493.4,0.1]
[1721543647435,14.27412083,3493.5,3493.4,0.1]
[1721543647630,14.27401795,3493.5,3493.4,0.1]
[1721543648031,3.75347687,3493.5,3493.4,0.1]
[1721543648259,2.86245,3493.5,3493.4,0.1]
[1721543649370,0.59407419,3493.6,3493.4,0.1]
[1721543649665,0.89102687,3493.8,3493.4,0.1]
[1721543649666,2.8623,3493.7,3493.5,2.4614]
[1721543649962,2.86237,3493.6,3493.5,0.25614]
[1721543650162,2.86237,3493.6,3493.4,0.1]
[1721543650163,2.86245,3493.5,3493.4,0.1]
[1721543650365,5.7249,3493.5,3493.4,0.1]
[1721543650934,3.45637419,3493.7,3493.4,0.1]
[1721543651234,2.8623,3493.7,3493.4,0.1]
[1721543651853,5.7249,3493.5,3493.4,0.1]
[1721543653149,6.95087161,3493.5,3493.4,0.1]
[1721543653355,6.35679742,3493.5,3493.4,0.1]
[1721543653591,6.95074165,3493.5,3493.4,0.1]
[1721543654294,6.31884423,3493.5,3493.4,0.1]
[1721543657777,3.45639423,3493.5,3493.4,0.1]
[1721543658176,6.31884423,3493.5,3493.4,0.1]
[1721543658504,2.86245,3493.5,3493.4,0.1]
[1721543658873,3.45628423,3493.7,3493.4,0.1]
[1721543659183,2.86245,3493.6,3493.4,0.1]
[1721543659988,4.79129,3493.8,3493.4,0.1]
[1721543659989,3.45618423,3493.8,3493.4,0.1]
[1721543660192,2.86229,3493.7,3493.4,0.1]
[1721543661278,8.1186,3493.5,3493.4,0.1]
[1721543661682,5.7249,3493.5,3493.4,0.1]
[1721543661897,6.31884423,3493.5,3493.4,0.1]
[1721543662106,5.7249,3493.5,3493.4,0.1]
[1721543662266,9.47837687,3493.5,3493.4,0.1]
[1721543662469,7.41676479,3493.5,3493.4,0.1]
[1721543664114,8.22076479,3493.5,3493.4,0.1]
[1721543664681,11.08321479,3493.5,3493.4,0.1]
[1721543665584,11.53531637,3493.5,3493.4,0.1]
[1721543665775,10.347342,3493.5,3493.4,0.1]
[1721543666574,7.86838216,3493.5,3493.4,0.1]
[1721543666776,8.67238216,3493.5,3493.4,0.1]
[1721543667019,6.68371696,3493.5,3493.4,0.1]
[1721543667512,7.41954961,3493.5,3493.4,0.1]
[1721543667724,6.68366354,3493.5,3493.4,0.1]
[1721543668982,9.54611354,3493.5,3493.4,0.1]
[1721543669801,14.80226354,3493.5,3493.4,1e-05]
[1721543670006,15.99624489,3493.5,3493.4,1e-05]
[1721543670945,13.13379489,3493.5,3493.4,1e-05]
[1721543671997,14.25979489,3493.5,3493.4,1e-05]
[1721543672427,17.12224489,3493.5,3493.4,1e-05]
[1721543672995,14.25979489,3493.5,3493.4,1e-05]
[1721543674227,19.35703963,3493.5,3493.4,1e-05]
[1721543674386,19.35703963,3493.5,3491.4,7.45]
[1721543674387,2.86369,3492.0,3491.5,2.283]
[1721543674826,2.86391,3491.8,3491.5,2.283]
[1721543675322,2.86401,3491.6,3491.5,2.283]
[1721543676589,2.86369,3492.0,3491.5,2.283]
[1721543677588,2.86377,3491.9,3491.5,2.283]
[1721543678028,2.86377,3491.9,3491.5,2.5113]
[1721543679129,2.8637,3492.0,3491.5,2.5113]
[1721543679636,0.59416174,3492.2,3491.5,5.37539]
[1721543679637,3.45771174,3492.2,3491.5,5.37539]
[1721543679809,2.8636,3492.1,3491.5,5.37539]
[1721543680532,3.45760174,3492.3,3491.6,2.864]
[1721543680716,2.86344,3492.3,3491.7,0.53753]
[1721543680892,0.59416174,3492.4,3491.8,2.283]
[1721543680893,3.45752174,3492.4,3491.8,2.283]
[1721543681241,2.86328,3492.5,3491.8,5.14684]
[1721543681548,2.86328,3492.5,3491.9,0.568437]
[1721543681898,3.45728174,3492.7,3492.0,2.283]
[1721543682345,2.86312,3492.7,3492.0,2.283]
[1721543683019,2.8632,3492.6,3492.0,2.283]
[1721543683215,2.86314,3492.7,3492.1,0.514684]
[1721543683413,2.86319,3492.6,3492.1,0.514684]
[1721543683833,2.86319,3492.6,3492.1,0.414684]
[1721543685731,2.86307,3492.8,3492.1,0.414684]
[1721543686027,2.86307,3492.8,3492.1,3.278284]
[1721543686237,2.86307,3492.8,3492.2,3.1255044]
[1721543686806,0.59416174,3492.9,3492.3,2.283]
[1721543687242,0.59416174,3492.9,3492.3,5.14638]
[1721543687444,0.59416174,3492.9,3492.3,2.283]
[1721543687641,0.59416174,3492.9,3492.5,2.283]
[1721543688121,0.59416174,3492.9,3492.5,5.14627]
[1721543688913,0.59416174,3492.9,3492.5,2.283]
[1721543689108,2.86305,3492.8,3492.5,2.283]
[1721543689942,0.59416174,3492.9,3492.5,2.283]
[1721543690239,3.45714174,3492.9,3492.5,2.283]
[1721543690450,2.86318,3492.7,3492.5,2.283]
[1721543691920,0.59416174,3492.9,3492.5,2.5113]
[1721543695446,2.86279,3493.1,3492.5,2.5113]
[1721543698069,3.45688174,3493.2,3492.5,5.37456]
[1721543698461,2.86278,3493.1,3492.5,5.37456]
[1721543699449,2.86287,3493.0,3492.5,2.5113]
[1721543699656,2.86287,3493.0,3492.5,2.283]
[1721543700894,2.86296,3492.9,3492.5,2.283]
[1721543701093,2.86283,3493.1,3492.5,2.283]
[1721543701643,2.86287,3493.0,3492.5,2.283]
[1721543702878,2.86287,3493.0,3492.5,2.797644]
[1721543703070,2.86295,3492.9,3492.5,2.797644]
[1721543705804,2.86288,3493.0,3492.5,2.797644]
[1721543705949,0.59416174,3493.1,3492.5,5.660904]
[1721543706151,3.66686,3493.0,3492.5,2.797644]
[1721543706559,0.804,3492.8,3492.5,2.283]
[1721543708552,2.86321,3492.6,3492.2,2.4199]
[1721543709587,3.66721,3492.6,3492.2,2.4199]
[1721543709765,2.86369,3492.0,3491.8,2.4199]
[1721543710157,0.89124261,3492.6,3491.3,15.10424]
[1721543710158,3.66777,3491.9,3491.4,2.4629]
[1721543710357,0.804,3491.6,3491.4,2.4629]
[1721543711092,2.86418,3491.4,3491.3,12.24]
[1721543711299,3.66804,3491.6,3491.3,12.24]
[1721543712154,2.86404,3491.6,3491.3,12.14]
[1721543715564,2.86404,3491.6,3491.1,2.4629]
[1721543716756,2.86386,3491.8,3491.1,6.905074]
[1721543717584,2.86393,3491.7,3491.1,4.040654]
[1721543719389,2.86393,3491.7,3491.1,2.4629]
[1721543720664,2.86402,3491.6,3491.1,2.4629]
[1721543721677,2.8641,3491.5,3491.1,2.4629]
[1721543721873,0.59416174,3492.0,3491.1,2.4629]
[1721543722182,2.86427,3491.3,3490.9,3.0]
[1721543722869,2.86405,3491.6,3490.9,3.0]
[1721543723070,2.86416,3491.5,3490.9,3.0]
[1721543723597,2.86418,3491.4,3490.9,3.0]
[1721543723777,2.86405,3491.6,3490.9,3.0]
[1721543724099,2.86405,3491.6,3490.9,4.864238]
[1721543724500,2.86412,3491.5,3490.9,4.864238]
[1721543724869,2.86382,3491.9,3491.1,2.86442]
[1721543725073,2.86376,3492.0,3491.2,2.4629]
[1721543725074,2.86388,3491.8,3491.2,2.4629]
[1721543725603,2.86393,3491.7,3491.2,2.4629]
[1721543726187,2.86377,3491.9,3491.2,5.74628968]
[1721543727067,2.86386,3491.8,3491.2,5.74628968]
[1721543728367,2.86374,3492.0,3491.2,5.74628968]
[1721543730015,0.59416174,3492.5,3491.8,2.4629]
[1721543730598,2.86328,3492.5,3491.8,2.4629]
[1721543731605,2.86353,3492.2,3491.8,2.4629]
[1721543732198,3.66753,3492.2,3491.8,2.4629]
[1721543733811,0.804,3492.2,3491.8,2.4629]
[1721543735042,0.59416174,3492.6,3491.9,2.92103427]
[1721543735178,3.66704,3492.8,3492.0,2.3973]
[1721543735501,0.59416174,3492.9,3492.0,2.3973]
[1721543735502,0.804,3492.6,3492.0,2.3973]
[1721543735707,3.66725,3492.6,3492.0,2.3973]
[1721543735875,3.66725,3492.6,3492.0,3.0511749]
[1721543738099,2.86325,3492.6,3492.0,3.0511749]
[1721543739433,2.86325,3492.6,3492.0,5.9148249]
[1721543739603,0.804,3492.6,3492.0,2.3973]
[1721543739958,3.66736,3492.4,3491.6,2.3973]
[1721543740252,2.86361,3492.1,3491.6,3.0]
[1721543741246,2.86361,3492.1,3491.5,7.45]
[1721543741247,3.66769,3492.0,3491.5,7.45]
[1721543741540,3.6679,3491.8,3491.5,7.45]
[1721543741747,3.6679,3491.8,3490.8,5.86466]
[1721543741748,2.86415,3491.5,3490.9,9.8473]
[1721543742965,2.86398,3491.7,3490.9,9.8473]
[1721543743144,3.66786,3491.8,3490.9,11.785378]
[1721543743449,2.86394,3491.7,3490.9,15.453948]
[1721543744125,2.86394,3491.7,3490.9,14.649948]
[1721543744450,2.86394,3491.7,3491.0,1.7514688]
[1721543745117,2.86386,3491.8,3491.1,2.86442]
[1721543745647,3.45786174,3492.0,3491.2,2.86427]
[1721543745813,3.45786174,3492.0,3491.3,2.86424]
[1721543746014,3.45786174,3492.0,3491.0,4.6159588]
[1721543746015,3.45777174,3492.1,3491.5,2.3973]
[1721543747684,2.86371,3492.0,3491.5,2.3973]
[1721543748183,3.45787174,3492.0,3491.5,2.3973]
[1721543749242,2.86371,3492.0,3491.5,2.3973]
[1721543749433,3.45787174,3492.0,3491.5,2.3973]
[1721543749937,1.48776385,3492.5,3491.5,2.3973]
[1721543749938,3.45761174,3492.3,3491.6,2.86395]
[1721543750374,2.86345,3492.3,3491.6,2.86395]
[1721543750983,2.86345,3492.3,3491.7,2.86393]
[1721543751168,3.45752174,3492.4,3491.7,2.86393]
[1721543752060,3.45752174,3492.4,3491.7,3.7290766]
[1721543752269,3.45752174,3492.4,3491.8,2.86384]
[1721543752973,2.86336,3492.4,3491.8,2.86384]